fUST/lending_fUST_20240227
["ID","MTS","AMOUNT","RATE_DAILY","PERIOD"]
[315370318,1708992643239,-500.0,0.00019452,2]
[315370319,1708992643249,-500.0,0.00019452,2]
[315370320,1708992643260,-3358.79,0.00019452,2]
[315370321,1708992643269,-500.0,0.00019452,2]
[315370322,1708992643279,-2076.84,0.00019452,2]
[315370323,1708992643290,-500.0,0.00019452,2]
[315370324,1708992643300,-500.0,0.00019452,2]
[315370325,1708992643310,-500.0,0.00019452,2]
[315370326,1708992643319,-262.021544,0.00019452,2]
[315370327,1708992643328,-500.0,0.00019452,2]
[315370328,1708992643338,-17303.09,0.00019452,2]
[315370329,1708992643347,-500.0,0.00019452,2]
[315370330,1708992643356,-2705.82,0.00019452,2]
[315370331,1708992643366,-500.0,0.00019452,2]
[315370332,1708992643375,-436.38596595,0.00019452,2]
[315370333,1708992643385,-500.0,0.00019452,2]
[315370334,1708992643395,-479.17651164,0.00019452,2]
[315370335,1708992643404,-597.76,0.00019452,2]
[315370336,1708992643414,-500.829993,0.00019452,2]
[315370337,1708992643425,-500.0,0.00019452,2]
[315370338,1708992643434,-332.7256389,0.00019452,2]
[315370339,1708992643445,-1863.07,0.00019452,2]
[315370340,1708992643454,-500.0,0.00019452,2]
[315370341,1708992643464,-2065.8,0.00019452,2]
[315370342,1708992643475,-192.628901,0.00019507,2]
[315370343,1708992643484,-2463.51589491,0.00019626,2]
[315370344,1708992643495,-166.666666,0.00019627,2]
[315370345,1708992643507,-861.33,0.00019725,2]
[315370346,1708992643517,-861.33,0.00019725,2]
[315370347,1708992643529,-574.29,0.00019726,2]
[315370348,1708992643538,-500.0,0.00019726,2]
[315370349,1708992643548,-500.0,0.00019726,2]
[315370350,1708992643558,-309.24117467,0.00019726,2]
[315370351,1708992643567,-500.0,0.00019726,2]
[315370352,1708992643577,-500.0,0.00019726,2]
[315370353,1708992643586,-500.0,0.00019726,2]
[315370354,1708992643596,-500.0,0.00019726,2]
[315370355,1708992643605,-502.00218481,0.00019726,2]
[315370356,1708992643615,-500.0,0.00019726,2]
[315370357,1708992643626,-1263.81,0.00019726,2]
[315370358,1708992643636,-500.0,0.00019726,2]
[315370359,1708992643646,-500.0,0.00019726,2]
[315370360,1708992643663,-500.0,0.00019726,2]
[315370361,1708992643676,-376.53441205,0.00019726,2]
[315370362,1708992643687,-376.01926502,0.00019726,2]
[315370363,1708992643697,-501.10864592,0.00019726,2]
[315370364,1708992643707,-500.0,0.00019726,2]
[315370365,1708992643716,-500.0,0.00019726,2]
[315370366,1708992643726,-500.0,0.00019726,2]
[315370367,1708992643736,-500.0,0.00019726,2]
[315370368,1708992643746,-171.64068098,0.00019726,2]
[315370369,1708992643756,-420.38233181,0.00019726,2]
[315370370,1708992643766,-3226.67,0.00019726,2]
[315370371,1708992643775,-536.28,0.00019726,2]
[315370372,1708992643785,-1303.69,0.00019726,2]
[315370373,1708992643795,-500.0,0.00019726,2]
[315370374,1708992643804,-1352.38,0.00019726,2]
[315370375,1708992643814,-500.0,0.00019726,2]
[315370376,1708992643823,-500.0,0.00019726,2]
[315370377,1708992643833,-2042.42,0.00019726,2]
[315370378,1708992643843,-503.40024603,0.00019726,2]
[315370379,1708992643853,-500.0,0.00019726,2]
[315370380,1708992643863,-529.94195677,0.00019726,2]
[315370381,1708992643872,-752.08,0.00019726,2]
[315370382,1708992643890,-500.0,0.00019726,2]
[315370383,1708992643907,-500.0,0.00019726,2]
[315370384,1708992643924,-500.0,0.00019726,2]
[315370385,1708992643942,-500.0,0.00019726,2]
[315370386,1708992643958,-500.0,0.00019726,2]
[315370387,1708992643971,-500.0,0.00019726,2]
[315370388,1708992643986,-500.0,0.00019726,2]
[315370389,1708992644000,-341.57797988,0.00019726,2]
[315370390,1708992644015,-500.0,0.00019726,2]
[315370391,1708992644030,-500.0,0.00019726,2]
[315370392,1708992644044,-500.0,0.00019726,2]
[315370393,1708992644055,-500.0,0.00019726,2]
[315370394,1708992644067,-500.0,0.00019726,2]
[315370395,1708992644081,-500.0,0.00019726,2]
[315370396,1708992644094,-500.0,0.00019726,2]
[315370397,1708992644106,-500.0,0.00019726,2]
[315370398,1708992644120,-576.01,0.00019726,2]
[315370399,1708992644134,-500.0,0.00019726,2]
[315370400,1708992644146,-500.0,0.00019726,2]
[315370401,1708992644157,-500.0,0.00019726,2]
[315370402,1708992644171,-500.0,0.00019726,2]
[315370403,1708992644185,-500.0,0.00019726,2]
[315370404,1708992644200,-500.0,0.00019726,2]
[315370405,1708992644216,-500.0,0.00019726,2]
[315370406,1708992644230,-500.0,0.00019726,2]
[315370407,1708992644244,-500.0,0.00019726,2]
[315370408,1708992644257,-500.0,0.00019726,2]
[315370409,1708992644271,-500.0,0.00019726,2]
[315370410,1708992644285,-229.23019617,0.00019726,2]
[315370411,1708992644299,-500.0,0.00019726,2]
[315370412,1708992644314,-500.0,0.00019726,2]
[315370413,1708992644328,-2198.83,0.00019726,2]
[315370414,1708992644339,-206.9662042,0.00019726,2]
[315370415,1708992644349,-1625.24,0.00019726,2]
[315370416,1708992644360,-172.04761987,0.00019726,2]
[315370417,1708992644371,-500.0,0.00019726,2]
[315370418,1708992644384,-1300.41,0.00019726,2]
[315370419,1708992644396,-502.13232332,0.00019726,2]
[315370420,1708992644409,-500.0,0.00019726,2]
[315370421,1708992644422,-500.0,0.00019726,2]
[315370422,1708992644435,-501.11759681,0.00019726,2]
[315370423,1708992644448,-501.25023183,0.00019726,2]
[315370424,1708992644461,-500.0,0.00019726,2]
[315370425,1708992644474,-500.0,0.00019726,2]
[315370426,1708992644487,-500.0,0.00019726,2]
[315370427,1708992644500,-907.39,0.00019726,2]
[315370428,1708992644513,-500.0,0.00019726,2]
[315370429,1708992644527,-500.0,0.00019726,2]
[315370430,1708992644540,-500.0,0.00019726,2]
[315370431,1708992644553,-500.0,0.00019726,2]
[315370432,1708992644564,-500.0,0.00019726,2]
[315370433,1708992644577,-500.0,0.00019726,2]
[315370434,1708992644590,-500.0,0.00019726,2]
[315370435,1708992644602,-500.0,0.00019726,2]
[315370436,1708992644614,-500.0,0.00019726,2]
[315370437,1708992644626,-1106.32,0.00019726,2]
[315370438,1708992644637,-500.0,0.00019726,2]
[315370439,1708992644649,-3645.04,0.00019726,2]
[315370440,1708992644661,-1431.7,0.00019726,2]
[315370441,1708992644674,-612.23784616,0.00019726,2]
[315370442,1708992644686,-865.79,0.00019726,2]
[315370443,1708992644698,-949.56,0.00019726,2]
[315370444,1708992644710,-500.0,0.00019726,2]
[315370445,1708992644723,-500.0,0.00019726,2]
[315370446,1708992644734,-659.55,0.00019726,2]
[315370447,1708992644745,-500.0,0.00019726,2]
[315370448,1708992644758,-11020.62,0.00019726,2]
[315370449,1708992644769,-500.0,0.00019726,2]
[315370450,1708992644780,-1715.46,0.00019726,2]
[315370451,1708992644791,-3554.77,0.00019726,2]
[315370452,1708992644802,-500.0,0.00019726,2]
[315370455,1708992644813,-500.0,0.00019726,2]
[315370457,1708992644825,-500.0,0.00019726,2]
[315370459,1708992644836,-500.0,0.00019726,2]
[315370461,1708992644847,-500.0,0.00019726,2]
[315370463,1708992644858,-500.0,0.00019726,2]
[315370465,1708992644869,-2853.03,0.00019726,2]
[315370467,1708992644880,-1894.86,0.00019726,2]
[315370469,1708992644891,-2054.17,0.00019726,2]
[315370472,1708992644902,-500.0,0.00019726,2]
[315370474,1708992644914,-500.0,0.00019726,2]
[315370476,1708992644925,-500.0,0.00019726,2]
[315370478,1708992644937,-500.0,0.00019726,2]
[315370480,1708992644951,-287.05748937,0.00019726,2]
[315370483,1708992644962,-500.0,0.00019726,2]
[315370485,1708992644972,-510.36105547,0.00019726,2]
[315370487,1708992644983,-1001.44015609,0.00019726,2]
[315370489,1708992644994,-17851.83,0.00019726,2]
[315370491,1708992645006,-1000.0,0.00019726,2]
[315370493,1708992645018,-500.0,0.00019726,2]
[315370496,1708992645030,-500.0,0.00019726,2]
[315370497,1708992645041,-2560.44,0.00019726,2]
[315370499,1708992645052,-500.0,0.00019726,2]
[315370501,1708992645063,-500.0,0.00019726,2]
[315370515,1708992645193,-500.0,0.00019726,2]
[315370517,1708992645203,-500.0,0.00019726,2]
[315370519,1708992645212,-500.0,0.00019726,2]
[315370521,1708992645222,-501.47582872,0.00019726,2]
[315370523,1708992645231,-1573.46,0.00019726,2]
[315370525,1708992645241,-478.4437147,0.00019726,2]
[315370527,1708992645250,-225.36072718,0.00019726,2]
[315370529,1708992645260,-500.0,0.00019726,2]
[315370531,1708992645269,-500.0,0.00019726,2]
[315370534,1708992645278,-185.15827025,0.00019726,2]
[315370537,1708992645287,-7320.56,0.00019726,2]
[315370540,1708992645297,-500.0,0.00019726,2]
[315370542,1708992645306,-500.0,0.00019726,2]
[315370544,1708992645315,-3358.79,0.00019726,2]
[315370546,1708992645324,-527.5632554,0.00019726,2]
[315370550,1708992645334,-2076.84,0.00019726,2]
[315370552,1708992645343,-500.0,0.00019726,2]
[315370555,1708992645355,-500.0,0.00019726,2]
[315370557,1708992645365,-500.0,0.00019726,2]
[315370560,1708992645374,-500.0,0.00019726,2]
[315370562,1708992645384,-17303.09,0.00019726,2]
[315370564,1708992645393,-500.0,0.00019726,2]
[315370566,1708992645402,-2705.82,0.00019726,2]
[315370568,1708992645411,-500.0,0.00019726,2]
[315370570,1708992645420,-500.0,0.00019726,2]
[315370572,1708992645429,-597.76,0.00019726,2]
[315370574,1708992645438,-500.0,0.00019726,2]
[315370575,1708992645447,-1863.07,0.00019726,2]
[315370576,1708992645456,-500.0,0.00019726,2]
[315370578,1708992645465,-2065.8,0.00019726,2]
[315370580,1708992645474,-2463.51589487,0.00019768,2]
[315370582,1708992645483,-653.63793708,0.00019772,2]
[315370584,1708992645492,-8230.24916882,0.0001989,2]
[315370585,1708992645501,-2463.51589487,0.00019909,2]
[315370587,1708992645510,-861.33,0.00019998,2]
[315370589,1708992645519,-861.33,0.00019998,2]
[315370591,1708992645530,-861.33,0.00019998,2]
[315370593,1708992645539,-104303.12329218,0.00019999,2]
[315370595,1708992645548,-861.33,0.00019999,2]
[315370597,1708992645558,-861.33,0.00019999,2]
[315370599,1708992645566,-243.58118859,0.00019999,2]
[315370601,1708992645575,-399.333294,0.00019999,2]
[315370603,1708992645584,-500.0,0.00019999,2]
[315370605,1708992645594,-500.0,0.00019999,2]
[315370607,1708992645603,-500.0,0.00019999,2]
[315370609,1708992645612,-500.0,0.00019999,2]
[315370611,1708992645621,-500.0,0.00019999,2]
[315370613,1708992645630,-210.84492649,0.00019999,2]
[315370615,1708992645639,-500.0,0.00019999,2]
[315370617,1708992645648,-500.0,0.00019999,2]
[315370619,1708992645658,-500.0,0.00019999,2]
[315370620,1708992645668,-500.0,0.00019999,2]
[315370622,1708992645678,-500.0,0.00019999,2]
[315370624,1708992645687,-500.0,0.00019999,2]
[315370626,1708992645696,-500.0,0.00019999,2]
[315370628,1708992645706,-500.0,0.00019999,2]
[315370631,1708992645725,-256.44210122,0.00019999,2]
[315370634,1708992645736,-399.333294,0.00019999,2]
[315370636,1708992645746,-574.29,0.0002,2]
[315370638,1708992645756,-500.0,0.0002,2]
[315370640,1708992645766,-500.0,0.0002,2]
[315370642,1708992645776,-500.0,0.0002,2]
[315370644,1708992645786,-503.59057309,0.0002,2]
[315370646,1708992645797,-500.0,0.0002,2]
[315370648,1708992645807,-500.0,0.0002,2]
[315370650,1708992645818,-500.0,0.0002,2]
[315370652,1708992645829,-1263.81,0.0002,2]
[315370654,1708992645839,-500.0,0.0002,2]
[315370656,1708992645849,-10948.0,0.0002,2]
[315370658,1708992645859,-500.0,0.0002,2]
[315370660,1708992645869,-500.0,0.0002,2]
[315370662,1708992645879,-500.0,0.0002,2]
[315370664,1708992645888,-500.0,0.0002,2]
[315370666,1708992645898,-3226.67,0.0002,2]
[315370668,1708992645908,-536.28,0.0002,2]
[315370670,1708992645918,-1303.69,0.0002,2]
[315370672,1708992645927,-500.0,0.0002,2]
[315370674,1708992645938,-1352.38,0.0002,2]
[315370678,1708992645952,-500.0,0.0002,2]
[315370681,1708992645962,-500.0,0.0002,2]
[315370683,1708992645972,-2042.42,0.0002,2]
[315370685,1708992645982,-500.0,0.0002,2]
[315370687,1708992645993,-200.0,0.0002,2]
[315370689,1708992646002,-752.08,0.0002,2]
[315370691,1708992646012,-500.0,0.0002,2]
[315370693,1708992646023,-500.0,0.0002,2]
[315370695,1708992646034,-500.0,0.0002,2]
[315370697,1708992646044,-500.0,0.0002,2]
[315370699,1708992646054,-285.47079158,0.0002,2]
[315370701,1708992646064,-500.0,0.0002,2]
[315370703,1708992646073,-500.0,0.0002,2]
[315370705,1708992646083,-500.0,0.0002,2]
[315370707,1708992646093,-500.0,0.0002,2]
[315370709,1708992646103,-502.38633586,0.0002,2]
[315370711,1708992646113,-500.0,0.0002,2]
[315370713,1708992646122,-500.0,0.0002,2]
[315370715,1708992646132,-500.0,0.0002,2]
[315370717,1708992646142,-290.39303171,0.0002,2]
[315370719,1708992646151,-576.01,0.0002,2]
[315370721,1708992646161,-500.0,0.0002,2]
[315370723,1708992646171,-500.0,0.0002,2]
[315370725,1708992646180,-500.0,0.0002,2]
[315370727,1708992646190,-500.0,0.0002,2]
[315370728,1708992646200,-500.0,0.0002,2]
[315370730,1708992646210,-500.0,0.0002,2]
[315370732,1708992646220,-159.48453292,0.0002,2]
[315370734,1708992646230,-500.0,0.0002,2]
[315370735,1708992646240,-500.0,0.0002,2]
[315370737,1708992646251,-500.0,0.0002,2]
[315370739,1708992646261,-500.0,0.0002,2]
[315370741,1708992646270,-500.0,0.0002,2]
[315370743,1708992646281,-500.0,0.0002,2]
[315370745,1708992646291,-2198.83,0.0002,2]
[315370747,1708992646300,-1625.24,0.0002,2]
[315370748,1708992646310,-1300.41,0.0002,2]
[315370750,1708992646320,-500.0,0.0002,2]
[315370752,1708992646329,-596.53827503,0.0002,2]
[315370754,1708992646339,-500.0,0.0002,2]
[315370755,1708992646348,-500.0,0.0002,2]
[315370757,1708992646357,-907.39,0.0002,2]
[315370758,1708992646367,-500.0,0.0002,2]
[315370759,1708992646377,-500.0,0.0002,2]
[315370760,1708992646386,-500.0,0.0002,2]
[315370761,1708992646395,-501.79848938,0.0002,2]
[315370762,1708992646404,-500.0,0.0002,2]
[315370763,1708992646416,-500.0,0.0002,2]
[315370764,1708992646426,-151.62735576,0.0002,2]
[315370765,1708992646436,-500.0,0.0002,2]
[315370766,1708992646447,-500.0,0.0002,2]
[315370767,1708992646456,-1106.32,0.0002,2]
[315370768,1708992646466,-500.0,0.0002,2]
[315370769,1708992646476,-3645.04,0.0002,2]
[315370770,1708992646485,-1431.7,0.0002,2]
[315370771,1708992646494,-865.79,0.0002,2]
[315370772,1708992646503,-949.56,0.0002,2]
[315370773,1708992646513,-443.78647685,0.0002,2]
[315370774,1708992646523,-1213.03098536,0.0002,2]
[315370775,1708992646533,-500.0,0.0002,2]
[315370776,1708992646542,-659.55,0.0002,2]
[315370777,1708992646552,-11020.62,0.0002,2]
[315370778,1708992646562,-500.0,0.0002,2]
[315370779,1708992646572,-1715.46,0.0002,2]
[315370780,1708992646582,-3554.77,0.0002,2]
[315370781,1708992646593,-500.0,0.0002,2]
[315370782,1708992646603,-500.0,0.0002,2]
[315370783,1708992646614,-500.0,0.0002,2]
[315370784,1708992646624,-500.0,0.0002,2]
[315370785,1708992646633,-2853.03,0.0002,2]
[315370786,1708992646643,-1894.86,0.0002,2]
[315370787,1708992646652,-2054.17,0.0002,2]
[315370788,1708992646662,-500.0,0.0002,2]
[315370789,1708992646671,-500.0,0.0002,2]
[315370790,1708992646681,-500.0,0.0002,2]
[315370791,1708992646690,-17851.83,0.0002,2]
[315370792,1708992646700,-1000.0,0.0002,2]
[315370793,1708992646710,-500.0,0.0002,2]
[315370794,1708992646719,-579.17,0.0002,2]
[315370795,1708992646728,-2560.44,0.0002,2]
[315370796,1708992646738,-500.0,0.0002,2]
[315370797,1708992646747,-500.0,0.0002,2]
[315370798,1708992646757,-500.0,0.0002,2]
[315370799,1708992646767,-501.65704131,0.0002,2]
[315370800,1708992646776,-1573.46,0.0002,2]
[315370801,1708992646786,-500.0,0.0002,2]
[315370802,1708992646796,-500.0,0.0002,2]
[315370803,1708992646806,-7320.56,0.0002,2]
[315370804,1708992646817,-503.94397976,0.0002,2]
[315370805,1708992646827,-500.0,0.0002,2]
[315370806,1708992646836,-3358.79,0.0002,2]
[315370807,1708992646846,-2076.84,0.0002,2]
[315370808,1708992646856,-500.0,0.0002,2]
[315370809,1708992646867,-503.94439511,0.0002,2]
[315370810,1708992646876,-500.0,0.0002,2]
[315370811,1708992646885,-500.0,0.0002,2]
[315370812,1708992646896,-17303.09,0.0002,2]
[315370813,1708992646905,-500.0,0.0002,2]
[315370814,1708992646916,-2705.82,0.0002,2]
[315370815,1708992646926,-500.0,0.0002,2]
[315370816,1708992646939,-500.0,0.0002,2]
[315370817,1708992646949,-597.76,0.0002,2]
[315370818,1708992646960,-500.0,0.0002,2]
[315370819,1708992646970,-1863.07,0.0002,2]
[315370820,1708992646981,-500.0,0.0002,2]
[315370821,1708992646990,-2065.8,0.0002,2]
[315370822,1708992646999,-248.23,0.0002003,7]
[315370823,1708992647009,-2463.51589487,0.00020051,2]
[315370824,1708992647019,-153.0,0.00020055,2]
[315370825,1708992647031,-153.0,0.00020055,2]
[315370826,1708992647040,-153.0,0.00020055,2]
[315370827,1708992647050,-153.0,0.00020055,2]
[315370828,1708992647060,-166.666666,0.00020076,2]
[315370829,1708992647070,-175.5,0.000201,2]
[315370830,1708992647081,-653.63793708,0.00020119,2]
[315370831,1708992647090,-308.0776582,0.00020192,2]
[315370832,1708992647101,-380.9162986,0.00020192,2]
[315370833,1708992647112,-153.0,0.00020192,2]
[315370834,1708992647123,-2463.51589487,0.00020192,2]
[315370835,1708992647133,-243.58118859,0.00020232,2]
[315370836,1708992647142,-500.0,0.00020272,2]
[315370837,1708992647152,-500.0,0.00020272,2]
[315370838,1708992647161,-500.0,0.00020272,2]
[315370839,1708992647170,-500.0,0.00020272,2]
[315370840,1708992647179,-500.0,0.00020272,2]
[315370841,1708992647189,-500.0,0.00020272,2]
[315370842,1708992647199,-500.0,0.00020272,2]
[315370843,1708992647209,-500.0,0.00020272,2]
[315370844,1708992647219,-500.0,0.00020272,2]
[315370845,1708992647229,-500.0,0.00020272,2]
[315370846,1708992647238,-500.0,0.00020272,2]
[315370847,1708992647249,-256.44210122,0.00020272,2]
[315370848,1708992647258,-500.0,0.00020272,2]
[315370849,1708992647268,-500.0,0.00020272,2]
[315370850,1708992647278,-500.0,0.00020272,2]
[315370851,1708992647287,-500.0,0.00020272,2]
[315370852,1708992647297,-500.0,0.00020272,2]
[315370853,1708992647306,-500.0,0.00020272,2]
[315370854,1708992647316,-500.0,0.00020272,2]
[315370855,1708992647325,-500.0,0.00020272,2]
[315370856,1708992647335,-500.0,0.00020272,2]
[315370857,1708992647344,-500.0,0.00020272,2]
[315370858,1708992647353,-500.0,0.00020272,2]
[315370859,1708992647363,-256.44210122,0.00020272,2]
[315370860,1708992647372,-399.333294,0.00020272,2]
[315370861,1708992647381,-861.33,0.00020272,2]
[315370862,1708992647390,-861.33,0.00020272,2]
[315370863,1708992647399,-861.33,0.00020272,2]
[315370864,1708992647409,-574.29,0.00020273,2]
[315370865,1708992647418,-500.0,0.00020273,2]
[315370866,1708992647427,-500.0,0.00020273,2]
[315370867,1708992647437,-500.0,0.00020273,2]
[315370868,1708992647445,-500.0,0.00020273,2]
[315370869,1708992647455,-502.00608495,0.00020273,2]
[315370870,1708992647464,-500.0,0.00020273,2]
[315370871,1708992647474,-1263.81,0.00020273,2]
[315370872,1708992647583,-500.0,0.00020273,2]
[315370873,1708992647593,-500.0,0.00020273,2]
[315370874,1708992647603,-500.0,0.00020273,2]
[315370875,1708992647613,-500.0,0.00020273,2]
[315370876,1708992647623,-500.0,0.00020273,2]
[315370877,1708992647634,-3226.67,0.00020273,2]
[315370878,1708992647643,-536.28,0.00020273,2]
[315370879,1708992647653,-1303.69,0.00020273,2]
[315370880,1708992647663,-503.33235874,0.00020273,2]
[315370881,1708992647672,-1352.38,0.00020273,2]
[315370882,1708992647682,-500.0,0.00020273,2]
[315370883,1708992647692,-500.0,0.00020273,2]
[315370884,1708992647701,-2042.42,0.00020273,2]
[315370885,1708992647710,-752.08,0.00020273,2]
[315370886,1708992647719,-520.13908972,0.00020273,2]
[315370887,1708992647729,-500.0,0.00020273,2]
[315370888,1708992647739,-500.0,0.00020273,2]
[315370889,1708992647749,-546.91782666,0.00020273,2]
[315370890,1708992647758,-500.0,0.00020273,2]
[315370891,1708992647767,-612.89728722,0.00020273,2]
[315370892,1708992647776,-500.0,0.00020273,2]
[315370893,1708992647787,-500.0,0.00020273,2]
[315370894,1708992647796,-500.0,0.00020273,2]
[315370895,1708992647805,-500.0,0.00020273,2]
[315370896,1708992647814,-576.01,0.00020273,2]
[315370897,1708992647823,-500.0,0.00020273,2]
[315370898,1708992647834,-500.0,0.00020273,2]
[315370899,1708992647843,-501.57235247,0.00020273,2]
[315370900,1708992647852,-500.0,0.00020273,2]
[315370901,1708992647862,-500.0,0.00020273,2]
[315370902,1708992647872,-500.0,0.00020273,2]
[315370903,1708992647882,-500.0,0.00020273,2]
[315370904,1708992647891,-500.0,0.00020273,2]
[315370905,1708992647899,-527.37919013,0.00020273,2]
[315370906,1708992647908,-500.0,0.00020273,2]
[315370907,1708992647918,-500.0,0.00020273,2]
[315370908,1708992647926,-2198.83,0.00020273,2]
[315370909,1708992647936,-1625.24,0.00020273,2]
[315370910,1708992647946,-1300.41,0.00020273,2]
[315370911,1708992647957,-500.0,0.00020273,2]
[315370912,1708992647967,-500.0,0.00020273,2]
[315370913,1708992647978,-500.0,0.00020273,2]
[315370914,1708992647987,-907.39,0.00020273,2]
[315370915,1708992647996,-183.1900104,0.00020273,2]
[315370916,1708992648004,-500.0,0.00020273,2]
[315370917,1708992648013,-500.0,0.00020273,2]
[315370918,1708992648023,-500.0,0.00020273,2]
[315370919,1708992648033,-325.82093239,0.00020273,2]
[315370920,1708992648042,-1106.32,0.00020273,2]
[315370921,1708992648051,-394.19851739,0.00020273,2]
[315370922,1708992648060,-3645.04,0.00020273,2]
[315370923,1708992648070,-1431.7,0.00020273,2]
[315370924,1708992648078,-865.79,0.00020273,2]
[315370925,1708992648087,-949.56,0.00020273,2]
[315370926,1708992648097,-500.0,0.00020273,2]
[315370927,1708992648107,-659.55,0.00020273,2]
[315370928,1708992648118,-11020.62,0.00020273,2]
[315370929,1708992648127,-1715.46,0.00020273,2]
[315370930,1708992648136,-3554.77,0.00020273,2]
[315370931,1708992648147,-500.0,0.00020273,2]
[315370932,1708992648157,-500.0,0.00020273,2]
[315370933,1708992648166,-504.38560451,0.00020273,2]
[315370934,1708992648176,-500.0,0.00020273,2]
[315370935,1708992648186,-2853.03,0.00020273,2]
[315370936,1708992648195,-1894.86,0.00020273,2]
[315370937,1708992648205,-2054.17,0.00020273,2]
[315370938,1708992648215,-500.0,0.00020273,2]
[315370939,1708992648225,-17851.83,0.00020273,2]
[315370940,1708992648235,-1000.0,0.00020273,2]
[315370941,1708992648246,-195.0089163,0.00020273,2]
[315370942,1708992648256,-2560.44,0.00020273,2]
[315370943,1708992648267,-500.0,0.00020273,2]
[315370944,1708992648276,-500.0,0.00020273,2]
[315370945,1708992648286,-1573.46,0.00020273,2]
[315370946,1708992648296,-409.1306388,0.00020273,2]
[315370947,1708992648305,-7320.56,0.00020273,2]
[315370948,1708992648315,-500.0,0.00020273,2]
[315370949,1708992648325,-3358.79,0.00020273,2]
[315370950,1708992648336,-2076.84,0.00020273,2]
[315370951,1708992648346,-500.0,0.00020273,2]
[315370952,1708992648355,-501.26705979,0.00020273,2]
[315370953,1708992648365,-500.0,0.00020273,2]
[315370954,1708992648374,-17303.09,0.00020273,2]
[315370955,1708992648383,-500.0,0.00020273,2]
[315370956,1708992648393,-2705.82,0.00020273,2]
[315370957,1708992648402,-298.70806404,0.00020273,2]
[315370958,1708992648412,-500.0,0.00020273,2]
[315370959,1708992648421,-597.76,0.00020273,2]
[315370960,1708992648431,-305.83280235,0.00020273,2]
[315370961,1708992648441,-1863.07,0.00020273,2]
[315370962,1708992648451,-500.0,0.00020273,2]
[315370963,1708992648460,-2065.8,0.00020273,2]
[315370964,1708992648469,-2463.51589487,0.00020334,2]
[315370965,1708992648478,-154.0038895,0.00020466,2]
[315370966,1708992648487,-240.7634129,0.00020466,2]
[315370967,1708992648496,-392.0466546,0.00020466,2]
[315370968,1708992648505,-653.63793708,0.00020466,2]
[315370969,1708992648514,-2463.51589487,0.00020475,2]
[315370970,1708992648522,-166.666666,0.00020524,2]
[315370971,1708992648532,-243.58118859,0.00020545,2]
[315370972,1708992648541,-243.58118859,0.00020546,2]
[315370973,1708992648551,-861.33,0.00020546,2]
[315370974,1708992648561,-861.33,0.00020546,2]
[315370975,1708992648571,-574.29,0.00020547,2]
[315370976,1708992648581,-500.0,0.00020547,2]
[315370977,1708992648591,-500.0,0.00020547,2]
[315370978,1708992648601,-1263.81,0.00020547,2]
[315370979,1708992648611,-500.0,0.00020547,2]